Cogmind - Beta 12 @@@ ROGUE MODE // 2024.02.13 @ 23:29:40 // AFD2020/Player2 Player: drchaos820 Result: Destroyed by H-66 Slayer with Gauss Rifle Performance ------------- Evolutions (5) 2500 Regions Visited (14) 2800 Robots Destroyed (91) 455 Value Destroyed (3191) 3191 Prototype IDs (6) 120 Alien Tech Used (0) 0 Bonus (7700) 7700 TOTAL SCORE: 16766 Bonus ------- Triggered High Security 500 High Alert Combat Kills 1591 Follower Combat Kills 4631 Entered DSFs 500 Met Imprinter 300 Was Imprinted 300 Met R17 at Cetus 500 Friendly Fire -622 Cogmind --------- Core Integrity 0/1000 Matter 212/300 Energy 100/100 System Corruption 2% Temperature Cool (9) Movement Core (50) Location -5/Cetus Parts ------- > --- POWER (2) -------- (None) > --- PROPULSION (2) --- (None) > --- UTILITY (10) ----- Visual Processing Unit Signal Interpreter Target Analyzer Propulsion Shielding Hacking Suite > --- WEAPON (3) ------- CR-A16's Behemoth Slayer > --- INVENTORY (5) ---- Large Storage Unit Energy Well (138) Targeting Computer Zionite Weapon Casing Hacking Drone Bay (1/1) Peak State ------------ > --- POWER ------------ Light Fission Core Neutrino Core > --- PROPULSION ------- Compact Wheel > --- UTILITY ---------- Improved Heat Sink Large Storage Unit Visual Processing Unit Signal Interpreter Improved Targeting Computer Target Analyzer Improved Utility Shielding Hardened Heavy Armor Plating Hacking Suite > --- WEAPON ----------- Improved Arc Projector Disruptor Cannon Improved Proton Missile Launcher > --- INVENTORY -------- Light Nuclear Core Makeshift Power Source Armored Huge Wheel Improved Heat Sink Improved Heat Sink Large Storage Unit Huge Storage Unit Hacking Drone Bay Autogun Assault Cannon Slug Cannon Bore Cannon CR-A16's Behemoth Slayer [Rating: 60] Favorites ----------- Power Light Nuclear Core Engine Ion Engine Power Core Light Nuclear Core Propulsion Compact Wheel Leg Aluminum Leg Wheel Compact Wheel Utility Improved Heat Sink Device Improved Heat Sink Storage Large Storage Unit Processor Visual Processing Unit Hackware Hacking Suite Protection Improved Utility Shielding Weapon Assault Cannon Energy Gun Particle Gun Energy Cannon Proton Cannon Ballistic Gun Autogun Ballistic Cannon Assault Cannon Launcher Improved Proton Missile Launcher Piercing Weapon CR-A16's Behemoth Slayer Build | -11 -10 -9 -9 -8 -7 -7 -7 -7 -6 -6 -6 -5 -5 -5 ------- Run | Jun Mat Mat Sto Mat Fac Low Low Zio Pro Fac DSF Fac Ext Cet Slots Evolved 10 | . . 2 . 2 2 . . . . 2 . 2 . . Power 1 | . . . . . 1 . . . . . . . . . Propulsion . | . . . . . . . . . . . . . . . Utility 8 | . . 2 . 1 1 . . . . 2 . 2 . . Weapon 1 | . . . . 1 . . . . . . . . . . Parts Attached 93 | 7 . 2 5 26 9 5 . 1 1 2 3 4 6 22 Power 13 | 1 . . . 3 1 2 . 1 . . . 2 . 3 Engine 7 | 1 . . . 3 . 1 . 1 . . . . . 1 Core 6 | . . . . . 1 1 . . . . . 2 . 2 Reactor . | . . . . . . . . . . . . . . . Propulsion 12 | 2 . . 2 4 3 . . . . . . . . 1 Treads . | . . . . . . . . . . . . . . . Leg 1 | . . . . 1 . . . . . . . . . . Wheel 11 | 2 . . 2 3 3 . . . . . . . . 1 Hover . | . . . . . . . . . . . . . . . Flight . | . . . . . . . . . . . . . . . Utility 26 | 2 . 2 1 5 4 . . . . 2 2 1 . 7 Device 9 | 1 . . . . 4 . . . . . 1 . . 3 Storage 4 | 1 . . 1 1 . . . . . . . . . 1 Processor 5 | . . 1 . 2 . . . . . 2 . . . . Hackware 1 | . . 1 . . . . . . . . . . . . Protection 7 | . . . . 2 . . . . . . 1 1 . 3 Artifact . | . . . . . . . . . . . . . . . Weapon 42 | 2 . . 2 14 1 3 . . 1 . 1 1 6 11 Energy Gun 11 | . . . . 7 1 . . . . . . . 1 2 Energy Cannon 2 | . . . . . . . . . . . 1 1 . . Ballistic Gun 12 | 2 . . 2 4 . 1 . . . . . . 1 2 Ballistic Cannon 7 | . . . . . . 2 . . . . . . 1 4 Launcher 8 | . . . . 3 . . . . . . . . 3 2 Special Weapon . | . . . . . . . . . . . . . . . Impact Weapon . | . . . . . . . . . . . . . . . Slashing Weapon . | . . . . . . . . . . . . . . . Piercing Weapon 2 | . . . . . . . . . 1 . . . . 1 Special Melee Weapon . | . . . . . . . . . . . . . . . Unidentified Prototypes 4 | . . . . 1 . . . . . . 1 . . 2 Parts Lost 49 | . . . 1 15 3 3 . . 1 . . 1 . 25 Power 7 | . . . . 2 . 1 . . . . . . . 4 Propulsion 8 | . . . 1 3 1 . . . 1 . . . . 2 Utility 11 | . . . . 1 1 . . . . . . . . 9 Weapon 23 | . . . . 9 1 2 . . . . . 1 . 10 Highest Loss Streak 8 | . . . 1 8 2 2 . . 1 . . 1 . 8 To Critical Strikes 3 | . . . . . . . . . . . . . . 3 Average Slot Usage (%) 94 | . 100 96 100 93 88 95 100 100 94 86 93 87 88 87 Engine 5 | . 14 11 11 7 7 3 7 7 7 6 6 3 . 1 Core 6 | . . . . . 1 9 7 7 7 6 6 6 11 8 Wheel 12 | . 28 22 22 14 14 15 15 15 12 6 6 5 5 4 Device 10 | . 14 11 11 1 9 15 15 15 12 6 7 5 5 10 Storage 7 | . 14 11 11 9 7 7 7 7 7 6 6 5 5 10 Processor 17 | . . 11 11 23 15 15 15 15 15 26 26 23 23 22 Hackware 6 | . . 8 11 9 7 7 7 7 7 6 6 5 5 5 Protection 2 | . . . . 2 4 . . . . . 4 11 11 4 Energy Gun 2 | . . . . 10 18 3 . . . . . . 1 3 Ballistic Gun 8 | . 28 22 22 14 . 6 7 7 7 6 6 5 3 1 Ballistic Cannon 7 | . . . . . . 8 15 15 12 6 6 5 4 5 Naked Turns . | . . . . . . . . . . . . . . . Heaviest Build 86 | 14 14 14 20 38 42 47 47 47 46 40 48 81 86 83 Greatest Support 32 | 26 26 26 32 32 32 26 26 26 26 16 16 16 16 28 Greatest Overweight (x) 10 | . . . 1 10 2 1 1 1 2 2 2 5 5 8 Average Overweight (x) 1 | . . . . 1 1 1 1 1 1 2 2 4 5 1 Largest Inventory Capacity 15 | 8 8 8 10 15 15 15 15 15 15 15 15 15 15 15 Average Capacity 14 | 7 8 8 8 14 15 15 15 15 15 15 15 15 15 14 Most Carried 15 | 4 6 5 8 7 13 15 15 15 15 14 15 14 14 15 Average Carried 11 | 2 3 4 5 4 9 13 14 14 15 13 12 12 14 11 Final Capacity 15 | 8 8 8 10 15 15 15 15 15 15 15 15 15 15 5 Final Carried 15 | 4 6 4 7 6 13 13 15 15 15 13 13 14 14 5 Class Distribution -------------------- 38% | Scavenger-Skirmisher 27% | Scavenger-Gunner 19% | Scavenger-Mutant 11% | Mutant Dominant Class ---------------- Mutant | -10/Materials Mutant | -9/Materials Mutant | -9/Storage Scavenger-Gunner | -8/Materials Scavenger-Mutant | -7/Factory Scavenger-Skirmisher | -7/Lower Caves Scavenger-Skirmisher | -7/Lower Caves Scavenger-Skirmisher | -7/Zion Scavenger-Skirmisher | -6/Proximity Caves Scavenger-Skirmisher | -6/Factory Scavenger-Gunner | -6/DSF Scavenger-Gunner | -5/Factory Scavenger-Gunner | -5/Extension Scavenger-Gunner | -5/Cetus Resources | -11 -10 -9 -9 -8 -7 -7 -7 -7 -6 -6 -6 -5 -5 -5 ----------- Run | Jun Mat Mat Sto Mat Fac Low Low Zio Pro Fac DSF Fac Ext Cet Matter Collected 2166 | 310 84 . 198 404 80 132 31 10 65 . 50 89 124 589 Remotely . | . . . . . . . . . . . . . . . Salvage Created 3227 | 138 258 29 378 921 193 40 . . 21 . . 46 658 545 Parts 187 | 6 21 3 23 51 7 5 . . 2 . . 4 45 20 Haulers Intercepted 1 | . . . . . . . . . . . . . 1 . Recyclers Shooed 2 | . 1 . . 1 . . . . . . . . . . Parts Field Recycled . | . . . . . . . . . . . . . . . Retrieved Matter . | . . . . . . . . . . . . . . . Parts Self-Destructed 24 | . . . . . . 14 . . 10 . . . . . Prevented . | . . . . . . . . . . . . . . . Kills | -11 -10 -9 -9 -8 -7 -7 -7 -7 -6 -6 -6 -5 -5 -5 ------- Run | Jun Mat Mat Sto Mat Fac Low Low Zio Pro Fac DSF Fac Ext Cet Combat Hostiles Destroyed 63 | . 5 2 6 17 3 2 . . 1 . . 2 7 18 Melee 3 | . . . . . . . . . . . . . . 3 Guns 26 | . 5 2 6 5 3 1 . . . . . 1 . 3 Cannons 16 | . . . . . . 1 . . 1 . . 1 3 10 AOE 17 | . . . . 12 . . . . . . . . 4 1 Classes Destroyed 16 | 2 5 . 1 3 . 1 . . . . . . 3 1 Worker 5 | . 1 . . 1 . . . . . . . . 3 . Builder 7 | . . . . 4 . . . . . . . . 3 . Tunneler 4 | 2 . . . 1 . . . . . . . . 1 . Hauler 1 | . . . . . . . . . . . . . 1 . Recycler 6 | 1 1 . 1 3 . . . . . . . . . . Operator 1 | . 1 . . . . . . . . . . . . . Watcher 4 | . 1 . 2 . . . . . . . . . . 1 Swarmer 15 | . 3 2 . 3 . . . . . . . 2 . 5 Saboteur 2 | . . . . . . . . . . . . . 1 1 Grunt 27 | . 2 . 5 8 2 1 . . . . . . 5 4 Brawler 2 | . . . . . . . . . . . . . . 2 Duelist 4 | . . . . 2 . . . . . . . . . 2 Sentry 5 | . . . 1 3 1 . . . . . . . . . Specialist 1 | . . . . 1 . . . . . . . . . . Programmer 2 | . . . . . . 1 . . 1 . . . . . Cetus Guard 4 | . . . . . . . . . . . . . . 4 Mutant 1 | . . . . . . . . . . . . . 1 . Best Kill Streak 12 | 3 4 2 4 12 3 1 . . 1 . . 2 8 6 Combat Bots Only 8 | . 3 2 3 8 3 1 . . 1 . . 2 4 6 Max Kills in Single Turn 6 | 1 2 1 1 4 1 1 . . 1 . . 2 6 1 Gunslinging . | . . . . . . . . . . . . . . . Exploded 3 | . . . . 3 . . . . . . . . 3 1 Melee 1 | . . . . . . . . . . . . . . 1 Uniques/NPCs Destroyed 1 | . . . . . . . . . . . . . 1 . AD-0RF (-5/Extension) Combat | -11 -10 -9 -9 -8 -7 -7 -7 -7 -6 -6 -6 -5 -5 -5 -------- Run | Jun Mat Mat Sto Mat Fac Low Low Zio Pro Fac DSF Fac Ext Cet Damage Taken 5997 | . 78 . 199 1303 402 246 . . 54 . . 329 557 2829 Core 1316 | . 28 . 34 223 106 96 . . . . . . 69 760 Absorbed by Shields . | . . . . . . . . . . . . . . . Redirected to Shielding 132 | . . . . . . . . . . . . 7 10 115 Core Remaining (%) 78 | 100 81 . 83 41 . . . . 64 . 100 . . . Volleys Fired 216 | 10 22 8 28 44 15 18 . . 4 . . 5 20 42 Largest 3 | 2 2 2 2 3 3 3 . . 3 . . 3 3 3 Hottest 190 | 40 40 40 43 171 176 115 . . 115 . . 148 190 190 Shots Fired 512 | 20 44 16 56 116 36 31 . . 12 . . 16 57 108 Gun 372 | 20 44 16 56 108 36 23 . . 4 . . 6 18 41 Cannon 119 | . . . . . . 8 . . 8 . . 10 33 60 Launcher 21 | . . . . 8 . . . . . . . . 6 7 Special . | . . . . . . . . . . . . . . . Kinetic 338 | 20 44 16 56 59 . 24 . . 12 . . 11 20 76 Thermal 58 | . . . . 25 26 7 . . . . . . . . Explosive 8 | . . . . 8 . . . . . . . . . . Electromagnetic 95 | . . . . 24 10 . . . . . . 5 37 19 Phasic 13 | . . . . . . . . . . . . . . 13 Robot Hit Streak 16 | 8 5 4 16 10 5 3 . . 3 . . 9 10 12 Robot Miss Streak 7 | 2 5 4 2 4 3 3 . . 4 . . 4 4 7 Penetration Max 1 | . . . . . . . . . . . . . . 1 Secondary Targets 6 | . . 2 1 3 . . . . . . . . . . Max Gunslinging Chain 1 | . . 1 1 1 . . . . . . . . . . Shots Hit Robots 277 | 14 18 10 42 69 20 13 . . 7 . . 10 24 50 Core Hits 188 | 5 11 3 20 48 8 8 . . 3 . . 2 38 42 Critical Kills 4 | . . . . . . . . . . . . . . 4 Critical Parts Destroyed 4 | . . . . . . . . . 1 . . . . 3 Critical Strikes 21 | . . . . . 3 . . . 2 . . 1 2 13 Burn 3 | . . . . . 3 . . . . . . . . . Destroy 8 | . . . . . . . . . 1 . . . . 7 Blast 3 | . . . . . . . . . . . . 1 1 1 Corrupt 1 | . . . . . . . . . . . . . 1 . Impale 4 | . . . . . . . . . 1 . . . . 3 Intensify 2 | . . . . . . . . . . . . . . 2 Melee Attacks 9 | . . . . . . . . . 2 . . . . 7 Impact . | . . . . . . . . . . . . . . . Slashing . | . . . . . . . . . . . . . . . Piercing 9 | . . . . . . . . . 2 . . . . 7 Sneak Attacks . | . . . . . . . . . . . . . . . Combat Hostiles . | . . . . . . . . . . . . . . . Follow-up Attacks . | . . . . . . . . . . . . . . . Damage Inflicted 7695 | 160 205 110 458 2292 363 220 . . 241 . . 208 1526 1912 Guns 3273 | 160 205 110 458 959 363 193 . . 22 . . 64 154 585 Cannons 1584 | . . . . . . 27 . . 149 . . 144 396 868 Explosions 2635 | . . . . 1333 . . . . . . . . 976 326 Melee 203 | . . . . . . . . . 70 . . . . 133 Ramming . | . . . . . . . . . . . . . . . Kinetic 3078 | 160 205 110 458 379 . 158 . . 171 . . 139 269 1029 Thermal 1056 | . . . . 610 211 62 . . . . . . 173 . Explosive 989 | . . . . 989 . . . . . . . . . . Electromagnetic 2039 | . . . . 314 152 . . . . . . 69 1084 420 Impact . | . . . . . . . . . . . . . . . Slashing . | . . . . . . . . . . . . . . . Piercing 203 | . . . . . . . . . 70 . . . . 133 Phasic 330 | . . . . . . . . . . . . . . 330 Highest Corruption 2 | . . . . . . 1 1 1 . . . 2 2 2 Average Corruption 1 | . . . . . . 1 1 1 . . . 1 2 2 Corruption Purged . | . . . . . . . . . . . . . . . Corruption Blocked . | . . . . . . . . . . . . . . . Effects 20 | . . . . . . 1 1 . . . . 2 4 12 Message Errors 4 | . . . . . . . . . . . . . 1 3 Matter Fused 8 | . . . . . . 1 1 . . . . . 2 4 Heat Flow Errors 2 | . . . . . . . . . . . . . . 2 Energy Discharges 1 | . . . . . . . . . . . . . . 1 Data Loss (minor) 1 | . . . . . . . . . . . . 1 . . Data Loss (major) 1 | . . . . . . . . . . . . . 1 . Misfires 1 | . . . . . . . . . . . . 1 . . Alerts 2 | . . . . . . . . . . . . . . 2 Overload Shots . | . . . . . . . . . . . . . . . Overflow Damage 106 | . . . . 24 . . . . 21 . . . 2 59 Projectiles 56 | . . . . . . . . . 21 . . . . 35 Explosions 50 | . . . . 24 . . . . . . . . 2 24 Melee . | . . . . . . . . . . . . . . . Knockbacks 2 | . . . . . . . . . 1 . . . . 1 Impact . | . . . . . . . . . . . . . . . Kinetic 2 | . . . . . . . . . 1 . . . . 1 Secondary . | . . . . . . . . . . . . . . . Self-Inflicted Damage 88 | . . . . 88 . . . . . . . . . . Shots 2 | . . . . 2 . . . . . . . . . . Rammed . | . . . . . . . . . . . . . . . Targets Rammed . | . . . . . . . . . . . . . . . Kicked . | . . . . . . . . . . . . . . . Crushed . | . . . . . . . . . . . . . . . Highest Temperature 355 | . 12 . 9 288 355 8 . . . . . 126 337 180 Average Temperature 94 | . 9 . 4 80 123 8 . . . . . 45 127 66 Received Heat Transfer 1292 | . 18 . 81 486 144 30 . . . . . 29 126 378 Effects 1 | . . . . . . . . . . . . . 1 . Energy Bleed 1 | . . . . . . . . . . . . . 1 . Siege Activations . | . . . . . . . . . . . . . . . Robots Corrupted 1 | . . . . . . . . . . . . . . 1 Combat Hostiles 1 | . . . . . . . . . . . . . . 1 Parts Fried 3 | . . . . . 1 . . . . . . . 1 1 Impact Corruptions . | . . . . . . . . . . . . . . . Robots Melted . | . . . . . . . . . . . . . . . Combat Hostiles . | . . . . . . . . . . . . . . . Parts Melted 7 | . . . . 6 . . . . . . . . . 1 Heat Transferred 2078 | . . . . 940 740 148 . . . . . . 250 . Parts Sabotaged 3 | . . . . . . . . . . . . . . 3 Parts Stolen . | . . . . . . . . . . . . . . . Parts Stripped . | . . . . . . . . . . . . . . . Power Chain Reactions 7 | . . . . 2 . . . . . . . . 5 . Missiles Intercepted . | . . . . . . . . . . . . . . . Alert | -11 -10 -9 -9 -8 -7 -7 -7 -7 -6 -6 -6 -5 -5 -5 ------- Run | Jun Mat Mat Sto Mat Fac Low Low Zio Pro Fac DSF Fac Ext Cet Peak Influence 2443 | 15 241 232 551 1176 685 . . . . 4 319 1131 1897 2443 Initial 1061 | . 9 101 97 232 506 . . . . . 2 167 455 1061 Average 764 | 4 126 168 255 720 585 . . . . . 206 494 1035 1585 Maximum Alert Level 5 | . 1 1 2 4 2 . . . . . 1 4 5 5 Low Security (%) 23 | 100 86 62 60 . . . . . . 100 31 35 . . Level 1 11 | . 13 37 4 28 . . . . . . 68 16 . . Level 2 21 | . . . 34 12 100 . . . . . . 19 30 . Level 3 11 | . . . . 36 . . . . . . . 25 28 3 Level 4 15 | . . . . 23 . . . . . . . 2 25 40 Level 5 8 | . . . . . . . . . . . . . 14 28 High Security 6 | . . . . . . . . . . . . . . 26 Max Security . | . . . . . . . . . . . . . . . Sterilizations 1 | . . . . . . . . . . . 1 . . . Squads Dispatched 34 | . 2 1 6 9 . . . . . . 2 1 5 8 Investigation 2 | . . . 2 . . . . . . . . . . . Extermination . | . . . . . . . . . . . . . . . Reinforcement 15 | . 2 1 1 6 . . . . . . 2 . 3 . Assault 14 | . . . 2 1 . . . . . . . 1 2 8 Garrison 3 | . . . 1 2 . . . . . . . . . . Intercept . | . . . . . . . . . . . . . . . Searches Triggered . | . . . . . . . . . . . . . . . Construction Impeded 3 | . . . . 2 . . . . . . . . 1 . Haulers Reinforced . | . . . . . . . . . . . . . . . Active Scanning Responses . | . . . . . . . . . . . . . . . Cargo Convoy Interrupts . | . . . . . . . . . . . . . . . Stealth | -11 -10 -9 -9 -8 -7 -7 -7 -7 -6 -6 -6 -5 -5 -5 --------- Run | Jun Mat Mat Sto Mat Fac Low Low Zio Pro Fac DSF Fac Ext Cet Distress Signals 11 | . 1 . 2 2 . . . . . . . 1 3 2 Communications Jammed . | . . . . . . . . . . . . . . . Distress Signals . | . . . . . . . . . . . . . . . Times Spotted 237 | . 10 6 19 38 7 10 . . 3 . 1 18 45 80 Peak Tracking Total 12 | . 3 4 6 8 3 4 . . 2 . 2 5 9 12 Tactical Retreats 2 | . . . . . . . . . . . . . 2 . Traps | -11 -10 -9 -9 -8 -7 -7 -7 -7 -6 -6 -6 -5 -5 -5 ------- Run | Jun Mat Mat Sto Mat Fac Low Low Zio Pro Fac DSF Fac Ext Cet Traps Triggered 5 | . . . 2 . 1 . . . . . . 2 . . Indirectly . | . . . . . . . . . . . . . . . Trap Hack Attempts . | . . . . . . . . . . . . . . . Triggered . | . . . . . . . . . . . . . . . Disarmed . | . . . . . . . . . . . . . . . Reprogrammed . | . . . . . . . . . . . . . . . Reused . | . . . . . . . . . . . . . . . Traps Extracted . | . . . . . . . . . . . . . . . Installed . | . . . . . . . . . . . . . . . Triggered . | . . . . . . . . . . . . . . . Machines | -11 -10 -9 -9 -8 -7 -7 -7 -7 -6 -6 -6 -5 -5 -5 ---------- Run | Jun Mat Mat Sto Mat Fac Low Low Zio Pro Fac DSF Fac Ext Cet Machines Disabled 12 | . . . . 4 . . . . . . . 1 4 3 Max in Single Turn 1 | . . . . 1 . . . . . . . . 1 . Garrison Access 3 | . . . 1 1 1 . . . . . . . . . Machines Repaired . | . . . . . . . . . . . . . . . Machines Sabotaged . | . . . . . . . . . . . . . . . Overloaded Fab Kills . | . . . . . . . . . . . . . . . Hacking | -11 -10 -9 -9 -8 -7 -7 -7 -7 -6 -6 -6 -5 -5 -5 --------- Run | Jun Mat Mat Sto Mat Fac Low Low Zio Pro Fac DSF Fac Ext Cet Machines Accessed 16 | . 1 1 5 1 2 . . . . 1 . 2 . 3 Terminals 13 | . 1 1 4 1 1 . . . . 1 . 1 . 3 Fabricators . | . . . . . . . . . . . . . . . Repair Stations . | . . . . . . . . . . . . . . . Recycling Units 1 | . . . . . . . . . . . . 1 . . Scanalyzers . | . . . . . . . . . . . . . . . Garrison Access 2 | . . . 1 . 1 . . . . . . . . . Total Hacks 35 | . 1 1 11 3 5 . . . . 1 . 2 . 11 Successful 15 | . . 1 3 1 2 . . . . 1 . 2 . 5 Failed 20 | . 1 . 8 2 3 . . . . . . . . 6 Catastrophic 6 | . . . 4 1 . . . . . . . . . 1 Database Lockouts . | . . . . . . . . . . . . . . . Manual 32 | . 1 1 9 3 4 . . 1 . . . 11 . 2 Terminals 31 | . 1 1 9 3 4 . . . . 1 . 1 . 11 Fabricators . | . . . . . . . . . . . . . . . Repair Stations . | . . . . . . . . . . . . . . . Recycling Units 1 | . . . . . . . . . . . . 1 . . Scanalyzers . | . . . . . . . . . . . . . . . Garrison Access 3 | . . . 2 . 1 . . . . . . . . . Terminal Hacks 12 | . . 1 2 1 1 . . . . 1 . 1 . 5 Record 4 | . . . . . . . . . . . . . . 4 Open Door 2 | . . . . . . . . . . . . 1 . 1 Open DSF 1 | . . . . . . . . . . 1 . . . . Branch Access Points 2 | . . 1 . 1 . . . . . . . . . . Unreport Threat 3 | . . . 2 . 1 . . . . . . . . . Fabricator Hacks . | . . . . . . . . . . . . . . . Repair Station Hacks . | . . . . . . . . . . . . . . . Recycling Unit Hacks . | . . . . . . . . . . . . . . . Scanalyzer . | . . . . . . . . . . . . . . . Garrison Access Hacks 2 | . . . 1 . 1 . . . . . . . . . Seal Access 2 | . . . 1 . 1 . . . . . . . . . Unauthorized Hacks 1 | . . . . . . . . . . . . 1 . . Terminals . | . . . . . . . . . . . . . . . Fabricators . | . . . . . . . . . . . . . . . Repair Stations . | . . . . . . . . . . . . . . . Recycling Units 1 | . . . . . . . . . . . . 1 . . Mask 1 | . . . . . . . . . . . . 1 . . Scanalyzers . | . . . . . . . . . . . . . . . Garrison Access . | . . . . . . . . . . . . . . . Data Cores Recovered 1 | . 1 . . . . . . . . . . . . . Used . | . . . . . . . . . . . . . . . Hacking Detections 12 | . 1 1 4 1 1 . . . . . . 1 . 3 Full Trace Events 2 | . . . 2 . . . . . . . . . . . Feedback Events . | . . . . . . . . . . . . . . . Feedback Blocked . | . . . . . . . . . . . . . . . Robot Schematics Acquired . | . . . . . . . . . . . . . . . Robots Built . | . . . . . . . . . . . . . . . Authchips . | . . . . . . . . . . . . . . . Time . | . . . . . . . . . . . . . . . Total Robot Build Rating . | . . . . . . . . . . . . . . . Part Schematics Acquired . | . . . . . . . . . . . . . . . Parts Built . | . . . . . . . . . . . . . . . Authchips . | . . . . . . . . . . . . . . . Time . | . . . . . . . . . . . . . . . Total Part Build Rating . | . . . . . . . . . . . . . . . Parts Repaired . | . . . . . . . . . . . . . . . Time . | . . . . . . . . . . . . . . . Parts Recycled . | . . . . . . . . . . . . . . . Recycled Matter . | . . . . . . . . . . . . . . . Retrieved Matter . | . . . . . . . . . . . . . . . Retrieved Components . | . . . . . . . . . . . . . . . Parts Scanalyzed . | . . . . . . . . . . . . . . . Part Schematics Acquired . | . . . . . . . . . . . . . . . Parts Damaged . | . . . . . . . . . . . . . . . Bothacking | -11 -10 -9 -9 -8 -7 -7 -7 -7 -6 -6 -6 -5 -5 -5 ------------ Run | Jun Mat Mat Sto Mat Fac Low Low Zio Pro Fac DSF Fac Ext Cet Used RIF Installer . | . . . . . . . . . . . . . . . Robots Hacked . | . . . . . . . . . . . . . . . Non-combat . | . . . . . . . . . . . . . . . Combat . | . . . . . . . . . . . . . . . Robot Hacks Applied . | . . . . . . . . . . . . . . . Relay Couplers Released 1 | . . . . 1 . . . . . . . . . . Machine Destruction 1 | . . . . 1 . . . . . . . . . . Fabnet Peak Effective % . | . . . . . . . . . . . . . . . Robots Rewired . | . . . . . . . . . . . . . . . Allies Hacked . | . . . . . . . . . . . . . . . Hacks Repelled . | . . . . . . . . . . . . . . . Allies | -11 -10 -9 -9 -8 -7 -7 -7 -7 -6 -6 -6 -5 -5 -5 -------- Run | Jun Mat Mat Sto Mat Fac Low Low Zio Pro Fac DSF Fac Ext Cet Total Allies 21 | . 1 . 2 . . . . 13 . . . 3 . 2 Largest Group 14 | . 1 1 3 1 1 1 1 14 14 12 12 10 10 3 Highest-Rated Group 615 | . 57 58 124 80 88 90 89 462 462 440 440 615 615 318 Highest-Rated Ally 135 | . 57 58 63 80 88 90 89 89 89 95 102 135 135 128 Zionite Dispatches 2 | . . . . . . . . . . . . 2 . . Heavy 1 | . . . . . . . . . . . . 1 . . Hero 1 | . . . . . . . . . . . . 1 . . Total Orders . | . . . . . . . . . . . . . . . Ally Attacks 410 | . 9 8 48 39 4 14 . . 22 . 34 46 110 76 Total Damage 22394 | . 28 93 849 1716 222 770 . . 314 . 2032 1994 6958 7418 Kills 171 | . . 2 15 19 4 12 . . 2 . 8 22 47 40 Allies Corrupted . | . . . . . . . . . . . . . . . Allies Melted 1 | . . . . . . . . . . . . . 1 . Intel | -11 -10 -9 -9 -8 -7 -7 -7 -7 -6 -6 -6 -5 -5 -5 ------- Run | Jun Mat Mat Sto Mat Fac Low Low Zio Pro Fac DSF Fac Ext Cet Robot Analysis Total . | . . . . . . . . . . . . . . . Derelict Logs Recovered 4 | . . . . . . 1 1 2 . . . . . . Drone Launches . | . . . . . . . . . . . . . . . Drone Recoveries . | . . . . . . . . . . . . . . . Zionite Intel Received 1 | . . . . . . . . . . . . 1 . . Main Access 1 | . . . . . . . . . . . . 1 . . Exploration | -11 -10 -9 -9 -8 -7 -7 -7 -7 -6 -6 -6 -5 -5 -5 ------------- Run | Jun Mat Mat Sto Mat Fac Low Low Zio Pro Fac DSF Fac Ext Cet Turns Passed 6499 | 94 295 112 383 442 397 694 348 1355 413 6 203 427 452 878 Spaces Moved 4191 | 62 167 68 292 188 288 550 317 977 289 4 90 212 196 491 Core 16 | 11 . . . 3 . . . . . . . . . 2 Treads . | . . . . . . . . . . . . . . . Legs 8 | . . . . 8 . . . . . . . . . . Wheels 4167 | 51 167 68 292 177 288 550 317 977 289 4 90 212 196 489 Hover . | . . . . . . . . . . . . . . . Flight . | . . . . . . . . . . . . . . . Fastest Speed 50 | 50 90 90 90 95 105 105 105 105 105 130 130 160 175 100 Average Speed 113 | 83 90 90 91 120 107 105 105 105 111 130 130 161 175 129 Slowest Speed 550 | 100 90 90 115 550 130 105 105 105 130 130 130 175 175 450 Overloaded Moves . | . . . . . . . . . . . . . . . Propulsion Burnouts . | . . . . . . . . . . . . . . . Robots Hopped . | . . . . . . . . . . . . . . . Cave-ins Triggered . | . . . . . . . . . . . . . . . Exploration Rate (%) 46 | 6 32 8 55 27 7 82 51 86 63 . 86 10 46 88 Regions Visited 14 Branch Regions 7 Pre-discovered Areas 4 | . . . . . . . . 4 . . . . . . Known Exits Taken 10 | . . 1 . 1 1 1 1 1 1 1 . 1 1 . Unknown Exits Taken 3 | 1 1 . 1 . . . . . . . . . . . Scrap Searched 7 | . . . . . . 4 1 1 1 . . . . . Spaces Dug . | . . . . . . . . . . . . . . . Terrain Destroyed 78 | . . . . 50 . 4 . . . . . . 7 17 Melee . | . . . . . . . . . . . . . . . Projectile 22 | . . . . . . 4 . . . . . . 1 17 AOE 56 | . . . . 50 . . . . . . . . 6 . Terrain Rammed . | . . . . . . . . . . . . . . . Walls Destroyed . | . . . . . . . . . . . . . . . Machines Disabled . | . . . . . . . . . . . . . . . Actions | -11 -10 -9 -9 -8 -7 -7 -7 -7 -6 -6 -6 -5 -5 -5 --------- Run | Jun Mat Mat Sto Mat Fac Low Low Zio Pro Fac DSF Fac Ext Cet Total 5461 | 82 272 104 354 311 340 641 332 1307 366 5 176 285 259 627 Wait 905 | . 78 27 28 40 22 63 14 325 71 . 79 64 38 56 Move 4177 | 61 166 67 291 187 287 549 316 976 288 3 89 211 195 491 Hop . | . . . . . . . . . . . . . . . Pick Up 40 | 4 4 . 2 7 6 3 2 2 . . 2 1 . 7 Fast Attach 36 | 7 . . 2 12 3 3 . . . . 1 1 . 7 Attach 31 | . . 2 1 9 2 1 . . . 2 1 1 . 12 Detach 1 | . . . . . . . . . . . 1 . . . Swap 26 | . . . 2 5 4 1 . 1 1 . 1 2 6 3 Drop 20 | . 2 . . 7 1 3 . 3 . . 2 . . 2 Fire 216 | 10 22 8 28 44 15 18 . . 4 . . 5 20 42 Melee 9 | . . . . . . . . . 2 . . . . 7 Ram . | . . . . . . . . . . . . . . . Kick . | . . . . . . . . . . . . . . . Crush . | . . . . . . . . . . . . . . . Escape Stasis . | . . . . . . . . . . . . . . . Rewire . | . . . . . . . . . . . . . . . Trap . | . . . . . . . . . . . . . . . Miscellaneous . | . . . . . . . . . . . . . . . Route ------- -11/Junkyard -10/Materials (discovered 2 exits: *Mat / [*Min]) -9/Materials (discovered 4 exits: Min x2 / *Sto x2) -9/Storage -8/Materials -7/Factory -7/Lower Caves -7/Lower Caves -7/Zion -6/Proximity Caves -6/Factory -6/DSF -5/Factory (discovered 5 exits: *Fac x4 / *Ext) -5/Extension (discovered 3 exits: *Fac x2 / *Cet) -5/Cetus (discovered 3 exits: *Fac x2 / *Arc) History --------- Turn | Location | Event 5 | -11/Junkyard | Discovered new exit (range 16) 95 | -11/Junkyard | Entered Materials 290 | -10/Materials | Discovered new exit (range 12) 314 | -10/Materials | Build established: Mutant 364 | -10/Materials | Discovered new exit (range 3) 390 | -10/Materials | Entered another Materials area 390 | -9/Materials | Evolved 2 slots: Utility x2 391 | -9/Materials | Discovered new exit (range 8) 460 | -9/Materials | Identified exit to Mines 460 | -9/Materials | Identified exit to Storage 502 | -9/Materials | Entered Storage 515 | -9/Storage | Garrison activated, responded to threat 681 | -9/Storage | Met a pair of Derelict thieves 856 | -9/Storage | Discovered new exit (range 18) 885 | -9/Storage | Entered Materials 885 | -8/Materials | Evolved 2 slots: Utility x1, Weapon x1 1033 | -8/Materials | Garrison activated, responded to threat 1093 | -8/Materials | Destroyed 8 combat bots 1102 | -8/Materials | Lost 5 parts (2n3w) 1181 | -8/Materials | Discovered new exit (range 14) 1209 | -8/Materials | Core integrity fell below 50% 1226 | -8/Materials | Lost 8 parts (2p1n1u4w) 1325 | -8/Materials | Identified exit to Factory 1327 | -8/Materials | Entered Factory 1327 | -7/Factory | Evolved 2 slots: Power x1, Utility x1 1703 | -7/Factory | Discovered new exit (range 8) 1709 | -7/Factory | Identified exit to Lower Caves 1724 | -7/Factory | Entered Lower Caves 1794 | -7/Lower Caves | Learned Factory machine intel 1943 | -7/Lower Caves | Encountered a Warlord checkpoint 1961 | -7/Lower Caves | Build established: Scavenger-Mutant 2014 | -7/Lower Caves | Attracted the attention of an 0b10 checkpoint 2302 | -7/Lower Caves | Discovered new exit (range 9) 2317 | -7/Lower Caves | Identified exit to Lower Caves 2319 | -7/Lower Caves | Build established: Scavenger-Skirmisher 2418 | -7/Lower Caves | Entered another Lower Caves area 2597 | -7/Lower Caves | Learned Factory garrison access intel 2663 | -7/Lower Caves | Encountered a Warlord checkpoint 2740 | -7/Lower Caves | Discovered new exit (range 13) 2751 | -7/Lower Caves | Identified exit to Zion 2766 | -7/Lower Caves | Entered Zion 2781 | -7/Zion | Given the Hacking Drone Bay 2782 | -7/Zion | Found Prototype Device 2806 | -7/Zion | System corruption cleaned by Quarantine Array 2833 | -7/Zion | Learned Factory stockpile data 2863 | -7/Zion | Received a hallucinogenic algorithm 2955 | -7/Zion | Learned location of Armory (-4) 2978 | -7/Zion | Found CR-A16's Pointy Stick 3040 | -7/Zion | Learned location of Data Miner (-6) 3241 | -7/Zion | Gained Derelict followers 3291 | -7/Zion | Learned Factory stockpile data 3321 | -7/Zion | Gained Derelict followers 3567 | -7/Zion | Given A8's code to call for help 3779 | -7/Zion | Imprinted 3781 | -7/Zion | Declared Zion's savior 3973 | -7/Zion | Discovered new exit (range 10) 3982 | -7/Zion | Identified exit to Proximity Caves 4121 | -7/Zion | Entered Proximity Caves 4121 | -6/Proximity Caves | Accompanied by 13 allies 4383 | -6/Proximity Caves | Spotted B-75 Beast 4393 | -6/Proximity Caves | Revealed the true nature of CR-A16's Pointy Stick 4394 | -6/Proximity Caves | Allies destroyed B-75 Beast 4472 | -6/Proximity Caves | Discovered new exit (range 16) 4500 | -6/Proximity Caves | Identified exit to Factory 4534 | -6/Proximity Caves | Entered Factory 4534 | -6/Factory | Accompanied by 11 allies 4534 | -6/Factory | Evolved 2 slots: Utility x2 4536 | -6/Factory | Loaded intel: 277 machine locations 4537 | -6/Factory | Loaded intel: 4 garrison access locations 4539 | -6/Factory | Identified exit to DSF 4540 | -6/Factory | Entered DSF 4540 | -6/DSF | Accompanied by 11 allies 4542 | -6/DSF | Identified Hacking Drone Bay 4564 | -6/DSF | Additional patrols routed to DSF 4605 | -6/DSF | Discovered new exit (range 16) 4699 | -6/DSF | Identified exit to Factory 4717 | -6/DSF | Sterilization system engaged 4737 | -6/DSF | Ambient heat levels rising (+10) 4743 | -6/DSF | Entered Factory 4743 | -5/Factory | Accompanied by 8 allies 4743 | -5/Factory | Evolved 2 slots: Utility x2 4794 | -5/Factory | Zion hero teleported in (AD-0RF) 4821 | -5/Factory | Build established: Scavenger-Gunner 5043 | -5/Factory | First assault squad dispatched 5117 | -5/Factory | Retrieved Zion intel report: Main Access 5117 | -5/Factory | Identified exit to Factory 5118 | -5/Factory | Zion Heavy squad teleported in 5159 | -5/Factory | Discovered new exit (range 6) 5164 | -5/Factory | Identified exit to Extension 5170 | -5/Factory | Entered Extension 5170 | -5/Extension | Accompanied by 9 allies (AD-0RF) 5182 | -5/Extension | Rescued a captive Derelict 5187 | -5/Extension | Rescued a captive Derelict 5188 | -5/Extension | Rescued a captive Derelict 5193 | -5/Extension | Rescued a captive Derelict 5211 | -5/Extension | Rescued a captive Derelict 5214 | -5/Extension | Rescued a captive Derelict 5222 | -5/Extension | Rescued a captive Derelict 5303 | -5/Extension | Spotted B-75 Beast 5312 | -5/Extension | Allies destroyed B-75 Beast 5323 | -5/Extension | Spotted B-75 Beast 5337 | -5/Extension | Allies destroyed B-75 Beast 5345 | -5/Extension | Discovered exit to Factory (range 14) 5470 | -5/Extension | First assault squad dispatched 5502 | -5/Extension | Allies destroyed AD-0RF 5564 | -5/Extension | Discovered exit to Factory (range 18) 5566 | -5/Extension | Discovered new exit (range 17) 5570 | -5/Extension | Disrupted transfer network 5572 | -5/Extension | P-70 Sage assimilated allied R9-DF9(M) 5596 | -5/Extension | Disrupted transfer network 5615 | -5/Extension | Identified exit to Cetus 5622 | -5/Extension | Entered Cetus 5622 | -5/Cetus | Accompanied by 1 ally 5645 | -5/Cetus | Spotted Cetus Guard 5645 | -5/Cetus | Spotted Cetus Guard 5648 | -5/Cetus | Destroyed Cetus Guard 5649 | -5/Cetus | Spotted Cetus Guard 5651 | -5/Cetus | Spotted Cetus Guard 5665 | -5/Cetus | Destroyed Cetus Guard 5670 | -5/Cetus | Allies destroyed Cetus Guard 5672 | -5/Cetus | Destroyed Cetus Guard 5683 | -5/Cetus | Lost 3 parts (1p1u1w) 5685 | -5/Cetus | Found Prototype Protection 5780 | -5/Cetus | Enhanced Grunt warped into view, answering call for help 5798 | -5/Cetus | Enhanced Grunt warped into view, answering call for help 5921 | -5/Cetus | Discovered new exit (range 17) 5959 | -5/Cetus | Identified exit to Archives 5993 | -5/Cetus | Spotted Cetus Guard 5993 | -5/Cetus | Spotted Cetus Guard 5996 | -5/Cetus | Spotted Cetus Guard 5997 | -5/Cetus | Spotted Cetus Guard 6008 | -5/Cetus | Allies destroyed Cetus Guard 6014 | -5/Cetus | Destroyed Cetus Guard 6019 | -5/Cetus | Allies destroyed Cetus Guard 6026 | -5/Cetus | Allies destroyed Cetus Guard 6032 | -5/Cetus | Discovered exit to Factory (range 18) 6040 | -5/Cetus | Scared off Revision 17 6047 | -5/Cetus | Lost 5 parts (1n4w) 6264 | -5/Cetus | High security lockdown imminent 6276 | -5/Cetus | Discovered exit to Factory (range 18) 6294 | -5/Cetus | Lost 5 parts (2p1u2w) 6344 | -5/Cetus | High security lockdown engaged 6396 | -5/Cetus | Cetus Manufacturing Module disabled 6459 | -5/Cetus | Lost 4 parts (1p1u2w) 6487 | -5/Cetus | Core integrity fell below 50% 6497 | -5/Cetus | Core integrity fell below 20% 6500 | -5/Cetus | Destroyed by H-66 Slayer with Gauss Rifle Last Messages --------------- 06492_ Penetrated by Slug. 06492_ Slug penetrates Wall. 06492_ Slug penetrates Earth. 06493_ Penetrated by Slug. 06493_ Zio. Biocell destroyed. 06493_ C-30 ARC bursts open, deploying its payload. 06493_ G-67 Veteran unfolds itself. 06493_ G-50 Soldier unfolds itself. 06493_ M-28 Smith unfolds itself. 06494_ Penetrated by Slug. 06494_ G-50 Soldier destroyed. 06494_ Penetrated by Slug. 06494_ Slug penetrates Wall. 06494_ Imp. Heat Sink destroyed. 06495_ Penetrated by Slug. 06497_ The unstable cave ceiling collapses. 06498_ Penetrated by Slug. 06498_ Lrg. Storage Unit destroyed. 06498_ G-50 Soldier destroyed. 06498_ Penetrated by Slug. Map ----- +----------------------------------------------------+ | ??????????????????????## # #?????????? | | ??????????????????????# ## ## #?????????? | | ??????????????????????#### # ##?????????? | | ???????????????????????# ##??????????? | | ???????????????????????## ##???????????? | | ????????????????????????## "#????????????? | | ?????????????????????????# "#????????????? | | ?????????????????????????# "#????????????? | | ?????????????????????????# ##????????????? | | ?????????????????????????# #?????????????? | | ?????????????????????????# #?????????????? | | ?????????????????????????# ##????????????? | | ?????????????????????????# ;#????????????? | | ?????????????????????????# ##????????????? | | #######??????????????????# #?????????????? | | " """""##????????????????# #?????????????? | | """ " #""???????????????# #?????????????? | | """""""#"######??????????# #?????????????? | | " """""#""""""#???????#### % ##????????????? | | """""""#" ""####????# # % #????????????? | | " #T ""# ###### g #????????????? | | " # ""## ## h m% #????????????? | | ## # ghm ##########???? | | = gh Y #???? | | % @ /!%=%! YY > #???? | | = * % @ Y #???? | | ! ## # ###########???? | | """#T # # ## ##?????????????? | | ########### #?###### # ###??????????????? | | ""#??? ???#### #????????????????? | | """# " #???###????????????????? | | ""# """""" " " #??????????????????????? | | """# " " " """ #??????????????????????? | | "### """""" " #??????????????????????? | | """#" """"""""" #??????????????????????? | | """#""""""""""" "#??????????????????????? | | """#" """"""""""""#??????????????????????? | | "### ?""""?" "#??????????????????????? | | """#?? ????????? ???????????????????????? | | """#???????????????????????????????????????? | | """#???????????????????????????????????????? | | "###???????????????????????????????????????? | | """????????????????????????????????????????? | | """#???????????????????????????????????????? | | ??##???????????????????????????????????????? | | ???????????????????????????????????????????? | | ???????????????????????????????????????????? | | ???????????????????????????????????????????? | | ???????????????????????????????????????????? | | ???????????????????????????????????????????? | +----------------------------------------------------+ Best States ------------- Heat Dissipation 81 Energy Generation 32 Energy Capacity 975 Matter Stores 300 Matter Capacity 300 Sight Range 18 Terrain Scan Density 10 Armor Coverage 600 Propulsion Shielding 33 Utility Shielding 66 Evasion (%) 50 Targeting Accuracy 6 Target Analysis 5 Offensive Hacking 10 Item Schematics ----------------- None Robot Schematics ------------------ None Fabricated ------------ Nothing Alien Tech Used ----------------- None Achievements -------------- Heroic Deeds Challenges ------------ None Player 2 | -11 -10 -9 -9 -8 -7 -7 -7 -7 -6 -6 -6 -5 -5 -5 ---------- Run | Jun Mat Mat Sto Mat Fac Low Low Zio Pro Fac DSF Fac Ext Cet Slots Evolved 10 | . 2 . 2 2 . . . . 2 . 2 . . . Power 1 | . . . . 1 . . . . . . . . . . Propulsion 2 | . . . 1 . . . . . . . 1 . . . Utility 3 | . . . 1 . . . . . 2 . . . . . Weapon 4 | . 2 . . 1 . . . . . . 1 . . . Parts Attached 101 | . 9 3 11 21 3 3 . 1 . 2 13 8 12 15 Parts Lost 31 | . . . . 6 . 1 . . . . 5 . 5 14 Damage Taken 4657 | . 61 100 65 873 116 272 . . . . 566 138 616 1850 Core 389 | . 19 23 11 99 . 47 . . . . . 27 25 138 Player 2/Cogmind (%) 22 | . 40 100 24 30 . 32 . . . . . 100 26 15 Absorbed by Shields . | . . . . . . . . . . . . . . . Damage Inflicted 15297 | . 28 93 386 1716 222 770 . . . . 1658 871 3270 6283 Player 2/Cogmind (%) 66 | . 12 45 45 42 37 77 . . . . 100 80 68 76 Combat Hostiles Destroyed 84 | . . 2 7 13 4 12 . . . . 5 4 9 28 Player 2/Cogmind (%) 57 | . . 50 53 43 57 85 . . . . 100 66 56 60 Game ------ Seed MatterWardroneStorage Manual? 0 Play Time 00:59:21 Cumulative 29.7 hours Start 2024.02.13 @ 22:32:54 End 2024.02.13 @ 23:29:40 Sessions 1 Manual Loads 0 Difficulty Rogue Special Mode AFD2020/Player2 Game No. 44 Rogue 21 Adventurer 23 Explorer 0 Win Type - Total 1 Types 1/0/0/0/0/0/0/0/0 Lore% 47 Gallery% 42 Achievement% 42 Wizard Run 0 Options --------- ASCII 0 Keyboard 0 Movement Mouse Keybinds 0 Fullscreen 2 Font 18/X11Bold Map View 76x50 Tactical HUD 1 Map Filters NONE Filters NONE Steam 1 RUN: 286aacf2-361b-4251-a040-9b9b64120851